fUST/lending_fUST_20250307
["ID","MTS","AMOUNT","RATE_DAILY","PERIOD"]
[355578718,1741318245855,-500.0,0.00021916,2]
[355578719,1741318245865,-500.0,0.00021916,2]
[355578720,1741318245875,-354.35159554,0.00021916,2]
[355578721,1741318245892,-203.62714496,0.00021916,2]
[355578722,1741318245902,-592.23321497,0.00021916,2]
[355578723,1741318245912,-160.0,0.00021917,3]
[355578724,1741318245922,-667.64,0.00021917,3]
[355578725,1741318245934,-701.95,0.00021917,3]
[355578726,1741318245943,-500.0,0.00021917,3]
[355578727,1741318245953,-500.0,0.00021917,3]
[355578728,1741318245963,-500.0,0.00021917,3]
[355578729,1741318245973,-500.0,0.00021917,3]
[355578730,1741318245982,-500.0,0.00021917,3]
[355578731,1741318245991,-500.0,0.00021917,3]
[355578732,1741318246001,-500.0,0.00021917,3]
[355578733,1741318246011,-500.0,0.00021917,3]
[355578734,1741318246022,-702.16,0.00021917,3]
[355578735,1741318246032,-500.0,0.00021917,3]
[355578736,1741318246042,-849.43,0.00021917,3]
[355578737,1741318246051,-500.0,0.00021917,3]
[355578738,1741318246061,-705.38,0.00021917,3]
[355578739,1741318246070,-500.0,0.00021917,3]
[355578740,1741318246079,-500.0,0.00021917,3]
[355578741,1741318246089,-500.0,0.00021917,3]
[355578742,1741318246098,-552.13,0.00021917,3]
[355578743,1741318246108,-500.0,0.00021917,3]
[355578744,1741318246117,-500.0,0.00021917,3]
[355578745,1741318246127,-785.23,0.00021917,3]
[355578746,1741318246137,-500.0,0.00021917,3]
[355578747,1741318246147,-500.0,0.00021917,3]
[355578748,1741318246158,-545.99,0.00021917,3]
[355578749,1741318246174,-392.946758,0.00021917,3]
[355578750,1741318246195,-392.333242,0.00021917,3]
[355578751,1741318246204,-134.538375,0.00021917,3]
[355578787,1741319432063,-300.0,0.00019021,2]
[355578789,1741319432072,-500.0,0.00019022,2]
[355578791,1741319432082,-500.0,0.00019022,2]
[355578793,1741319432092,-617.1359508,0.00019022,2]
[355578796,1741319432104,-88.32579945,0.00019022,2]
[355578798,1741319432115,-358.42420055,0.00019022,2]
[355578816,1741319432281,-408.00351081,0.00019022,2]
[355578818,1741319432291,-766.42771136,0.00019022,2]
[355578819,1741319432303,-500.0,0.000192,2]
[355578821,1741319432315,-500.0,0.000192,2]
[355578823,1741319432324,-500.0,0.000192,2]
[355578826,1741319432334,-500.0,0.000192,2]
[355578829,1741319432343,-500.0,0.000192,2]
[355578832,1741319432353,-500.0,0.000192,2]
[355578834,1741319432362,-181.66,0.000192,2]
[355578836,1741319432372,-521.14094295,0.000192,2]
[355578838,1741319432381,-314.008776,0.00019467,2]
[355578840,1741319432391,-802.00364295,0.00019817,2]
[355578842,1741319432401,-10000.0,0.00019979,2]
[355578844,1741319432409,-500.0,0.00020217,2]
[355578846,1741319432418,-185.25669592,0.000207,2]
[355578848,1741319432427,-420.0,0.00020732,2]
[355578850,1741319432437,-24900.0,0.00020917,2]
[355578851,1741319432446,-2400.43955358,0.00021717,2]
[355578852,1741319432455,-624.54588585,0.00021817,2]
[355578853,1741319432465,-699.04665384,0.00021916,2]
[355578854,1741319432474,-500.0,0.00021916,2]
[355578855,1741319432483,-500.0,0.00021916,2]
[355578856,1741319432493,-500.0,0.00021916,2]
[355578857,1741319432502,-500.0,0.00021916,2]
[355578858,1741319432511,-314.75056176,0.00021916,2]
[355578859,1741319432521,-500.0,0.00021916,2]
[355578860,1741319432530,-500.0,0.00021916,2]
[355578861,1741319432539,-500.0,0.00021916,2]
[355578862,1741319432548,-500.0,0.00021916,2]
[355578863,1741319432557,-500.0,0.00021916,2]
[355578864,1741319432566,-500.0,0.00021916,2]
[355578865,1741319432575,-521.02787027,0.00021916,2]
[355578866,1741319432584,-391.40080934,0.00021916,2]
[355578867,1741319432593,-162.94352121,0.00021917,3]
[355578868,1741319432603,-151.0,0.00021917,2]
[355578869,1741319432612,-293.92097,0.00021917,2]
[355578870,1741319432621,-752.56,0.00021917,3]
[355578871,1741319432631,-500.0,0.00021917,3]
[355578872,1741319432640,-500.0,0.00021917,3]
[355578873,1741319432649,-514.03,0.00021917,3]
[355578874,1741319432658,-500.0,0.00021917,3]
[355578875,1741319432667,-500.0,0.00021917,3]
[355578876,1741319432676,-500.0,0.00021917,3]
[355578877,1741319432685,-504.21127649,0.00021917,3]
[355578878,1741319432694,-501.87868684,0.00021917,3]
[355578879,1741319432704,-511.78527941,0.00021917,3]
[355578880,1741319432713,-500.0,0.00021917,3]
[355578881,1741319432722,-509.22743717,0.00021917,3]
[355578882,1741319432732,-500.0,0.00021917,3]
[355578883,1741319432741,-505.55820621,0.00021917,3]
[355578884,1741319432751,-500.0,0.00021917,3]
[355578885,1741319432760,-502.84016555,0.00021917,3]
[355578886,1741319432769,-569.71,0.00021917,3]
[355578887,1741319432779,-512.1235147,0.00021917,3]
[355578888,1741319432788,-505.60287953,0.00021917,3]
[355578889,1741319432798,-511.30820539,0.00021917,3]
[355578890,1741319432807,-506.60276332,0.00021917,3]
[355578891,1741319432816,-546.2,0.00021917,3]
[355578892,1741319432826,-500.0,0.00021917,3]
[355578893,1741319432835,-577.1974339,0.00021917,3]
[355578894,1741319432845,-373.72158971,0.00021917,3]
[355578895,1741319432855,-854.42,0.00021917,3]
[355578896,1741319432865,-500.0,0.00021917,3]
[355578897,1741319432874,-500.0,0.00021917,3]
[355578898,1741319432883,-526.09,0.00021917,3]
[355578899,1741319432892,-257.28072861,0.00021917,2]
[355578900,1741319432902,-726.09,0.00021917,3]
[355578901,1741319432911,-500.0,0.00021917,3]
[355578902,1741319432921,-866.54,0.00021917,3]
[355578903,1741319432930,-500.0,0.00021917,3]
[355578904,1741319432939,-413.90387217,0.00021917,3]
[355578907,1741319438054,-86.09612783,0.00021917,3]
[355578908,1741319438064,-449.47568405,0.00021917,3]
[355578924,1741319440270,-226.18431595,0.00021917,3]
[355578925,1741319440280,-231.31568405,0.00021917,3]
[355578926,1741319440291,-268.68431595,0.00021917,3]
[355578927,1741319440301,-500.0,0.00021917,3]
[355578928,1741319440312,-500.0,0.00021917,3]
[355578929,1741319440323,-500.0,0.00021917,3]
[355578930,1741319440333,-529.13,0.00021917,3]
[355578931,1741319440342,-1158.03,0.00021917,3]
[355578932,1741319440353,-151.0,0.00021917,2]
[355578933,1741319440363,-814.26,0.00021917,3]
[355578934,1741319440375,-846.56,0.00021917,3]
[355578935,1741319440385,-621.95,0.00021917,3]
[355578936,1741319440394,-434.40148113,0.00021917,3]
[355578937,1741319440403,-500.0,0.00021917,3]
[355578938,1741319440412,-752.51,0.00021917,3]
[355578939,1741319440422,-382.96,0.00021917,2]
[355578940,1741319440432,-877.34,0.00021917,3]
[355578941,1741319440442,-500.0,0.00021917,3]
[355578942,1741319440451,-523.24,0.00021917,3]
[355578943,1741319440460,-500.0,0.00021917,3]
[355578944,1741319440470,-500.0,0.00021917,3]
[355578945,1741319440479,-500.0,0.00021917,3]
[355578946,1741319440488,-653.73,0.00021917,3]
[355578947,1741319440497,-889.48,0.00021917,3]
[355578948,1741319440506,-500.0,0.00021917,3]
[355578949,1741319440516,-1209.81,0.00021917,3]
[355578950,1741319440525,-500.0,0.00021917,3]
[355578951,1741319440534,-500.0,0.00021917,3]
[355578952,1741319440554,-500.0,0.00021917,3]
[355578953,1741319440566,-862.62,0.00021917,3]
[355578954,1741319440576,-500.0,0.00021917,3]
[355578955,1741319440585,-557.71546945,0.00021917,3]
[355578956,1741319440595,-500.0,0.00021917,3]
[355578957,1741319440604,-537.7,0.00021917,3]
[355578958,1741319440614,-821.5,0.00021917,3]
[355578959,1741319440626,-600.24,0.00021917,3]
[355578960,1741319440635,-394.84909495,0.00021917,3]
[355578961,1741319440645,-784.35,0.00021917,3]
[355578962,1741319440655,-500.0,0.00021917,3]
[355578963,1741319440665,-500.0,0.00021917,3]
[355578964,1741319440674,-1883.67,0.00021917,3]
[355578965,1741319440684,-1775.76,0.00021917,3]
[355578966,1741319440693,-1905.95,0.00021917,3]
[355578967,1741319440703,-518.63147609,0.00021917,3]
[355578968,1741319440712,-500.0,0.00021917,3]
[355578969,1741319440722,-756.37,0.00021917,3]
[355578970,1741319440731,-500.0,0.00021917,3]
[355578971,1741319440741,-1498.59,0.00021917,3]
[355578972,1741319440750,-1588.58,0.00021917,3]
[355578973,1741319440760,-663.39,0.00021917,3]
[355578974,1741319440769,-1277.03,0.00021917,3]
[355578975,1741319440779,-785.51,0.00021917,3]
[355578976,1741319440788,-1429.41,0.00021917,3]
[355578977,1741319440798,-1155.49,0.00021917,3]
[355578978,1741319440807,-500.0,0.00021917,3]
[355578979,1741319440816,-500.0,0.00021917,3]
[355578980,1741319440826,-500.0,0.00021917,3]
[355578981,1741319440835,-1029.26,0.00021917,3]
[355578982,1741319440845,-500.0,0.00021917,3]
[355578983,1741319440855,-641.79555443,0.00021917,3]
[355578984,1741319440864,-500.0,0.00021917,3]
[355578985,1741319440874,-500.0,0.00021917,3]
[355578986,1741319440884,-605.59,0.00021917,3]
[355578987,1741319440893,-500.0,0.00021917,3]
[355578988,1741319440903,-500.0,0.00021917,3]
[355578989,1741319440912,-1976.28,0.00021917,3]
[355578990,1741319440922,-500.0,0.00021917,3]
[355578991,1741319440931,-500.0,0.00021917,3]
[355578992,1741319440941,-1514.47,0.00021917,3]
[355578993,1741319440950,-490.6608645,0.00021917,3]
[355578994,1741319440960,-1331.05,0.00021917,3]
[355578995,1741319440969,-500.0,0.00021917,3]
[355578996,1741319440979,-831.14,0.00021917,5]
[355578997,1741319440988,-500.0,0.00021917,3]
[355578998,1741319440998,-835.07,0.00021917,3]
[355578999,1741319441007,-560.3,0.00021917,3]
[355579000,1741319441017,-1036.01,0.00021917,3]
[355579001,1741319441027,-639.82,0.00021917,3]
[355579002,1741319441037,-500.0,0.00021917,3]
[355579003,1741319441047,-672.7,0.00021917,3]
[355579004,1741319441056,-607.73,0.00021917,3]
[355579005,1741319441066,-1881.22,0.00021917,3]
[355579006,1741319441075,-513.49679704,0.00021917,3]
[355579007,1741319441084,-500.0,0.00021917,3]
[355579008,1741319441094,-505.22185888,0.00021917,3]
[355579009,1741319441104,-500.0,0.00021917,3]
[355579010,1741319441113,-500.0,0.00021917,3]
[355579011,1741319441125,-500.0,0.00021917,3]
[355579012,1741319441419,-639.90335148,0.00021917,3]
[355579013,1741319441430,-500.0,0.00021917,3]
[355579014,1741319441440,-7034.09,0.00021917,3]
[355579015,1741319441450,-500.0,0.00021917,3]
[355579016,1741319441459,-2049.39,0.00021917,3]
[355579017,1741319441468,-562.94,0.00021917,3]
[355579018,1741319441478,-500.0,0.00021917,3]
[355579019,1741319441487,-2018.9,0.00021917,3]
[355579020,1741319441497,-63959.18794429,0.00021917,3]
[355579021,1741319441511,-582.04603108,0.00021917,3]
[355579022,1741319441522,-101400.73635513,0.00021917,3]
[355579035,1741319442930,-534.6690953,0.00019817,2]
[355579036,1741319442940,-1097.4357497,0.00021917,3]
[355579037,1741319442988,-4853.3239198,0.00021917,3]
[355579038,1741319442998,-506.98,0.00021917,3]
[355579039,1741319443008,-1614.31,0.00021917,3]
[355579040,1741319443017,-1794.09,0.00021917,3]
[355579041,1741319443026,-500.0,0.00021917,3]
[355579042,1741319443036,-500.0,0.00021917,3]
[355579043,1741319443045,-500.0,0.00021917,3]
[355579044,1741319443055,-500.0,0.00021917,3]
[355579045,1741319443065,-662.39,0.00021917,3]
[355579046,1741319443075,-331.88589685,0.00021917,3]
[355579047,1741319443087,-1689.53410315,0.00021917,3]
[355579048,1741319443096,-9.56886242,0.00021917,3]
[355579049,1741319443107,-315.929,0.00021917,3]
[355579050,1741319443124,-328.50213758,0.00021917,3]
[355579051,1741319443133,-48.36772386,0.00021917,3]
[355579173,1741319445951,-602.74227614,0.00021917,3]
[355579174,1741319445961,-1.08554274,0.00021917,3]
[355579179,1741319446009,-1288.26418683,0.00021917,3]
[355579181,1741319446021,-2414.11027043,0.00021917,3]
[355579183,1741319446032,-1903.63,0.00021917,3]
[355579185,1741319446041,-500.0,0.00021917,3]
[355579187,1741319446051,-500.0,0.00021917,3]
[355579188,1741319446061,-1001.72,0.00021917,3]
[355579189,1741319446070,-567.33,0.00021917,3]
[355579190,1741319446080,-353.55105116,0.00021917,3]
[355579391,1741319976328,190.0,0.00019,3]
[355579392,1741319994818,200.0,0.00019,3]
[355579393,1741320002362,200.0,0.00019,3]
[355579395,1741320570143,-196.10777659,0.000192,2]
[355579396,1741320570165,-416.07596613,0.000192,2]
[355579397,1741320570186,-500.0,0.000192,2]
[355579398,1741320570206,-1000.78148527,0.00019817,2]
[355579399,1741320570226,-210.28293897,0.0001996,2]
[355579443,1741320632181,-60.04182903,0.0001996,2]
[355579445,1741320632191,-500.0,0.00019987,2]
[355579447,1741320632201,-300.0,0.00020916,2]
[355579449,1741320632211,-17636.26942427,0.00020917,2]
[355579804,1741320640305,-7263.73057573,0.00020917,2]
[355579807,1741320640314,-166.54556956,0.00020925,2]
[355579810,1741320640324,-500.0,0.00020998,2]
[355579813,1741320640333,-500.0,0.00020998,2]
[355579816,1741320640343,-500.0,0.00020998,2]
[355579819,1741320640352,-240.58511835,0.00020998,2]
[355579822,1741320640362,-324.09367702,0.00020998,2]
[355579825,1741320640372,-500.0,0.00020998,2]
[355579828,1741320640381,-500.0,0.00020998,2]
[355579831,1741320640391,-500.0,0.00020998,2]
[355579834,1741320640400,-429.60144044,0.00020998,2]
[355579837,1741320640409,-342277.69430371,0.00020999,2]
[355580586,1741321677653,406.69525042,0.000188,3]
[355580598,1741321758263,-679.84817558,0.0001711,2]
[355580599,1741321770358,4126.30701345,0.00018713,10]
[355580603,1741321795629,-53.07412446,0.0001711,2]
[355580604,1741321795656,-300.0,0.00018713,2]
[355580605,1741321795683,-23850.85175108,0.00018714,2]
[355580606,1741321795696,-53.07412446,0.00018714,2]
[355580607,1741321795713,-300.0,0.00018714,2]
[355580608,1741321795724,-696.07412446,0.00018714,2]
[355580609,1741321795734,-3149.92288929,0.000188,2]
[355580610,1741321795743,-667.18765685,0.000189,2]
[355580611,1741321795945,-823.17975424,0.00019022,2]
[355580612,1741321795955,-500.0,0.000192,2]
[355580613,1741321795965,-500.0,0.000192,2]
[355580614,1741321795975,-9268.9472598,0.00019679,2]
[355580615,1741321795984,-420.0,0.00020403,2]
[355580616,1741321795994,-8410.841914,0.0002061,2]
[355580617,1741321796003,-167.73646863,0.0002092,2]
[355580618,1741321796012,-214.40016005,0.00020999,2]
[355580619,1741321796022,-81.70977268,0.00020999,2]
[355580643,1741321832459,-3135.43963515,0.000191,2]
[355580644,1741321832470,-3135.43963514,0.00020388,2]
[355580645,1741321832482,-53506.41431666,0.00020998,2]
[355580646,1741321832496,-47513.46624678,0.00020998,2]
[355580647,1741321832577,-17479.99414666,0.00020998,2]
[355580648,1741321832635,-27103.11060064,0.00020998,2]
[355580657,1741321840540,-307502.33665292,0.00020998,2]
[355580691,1741322058326,-250.0,0.0003,120]
[355580692,1741322058775,-250.0,0.0003,120]
[355580693,1741322059202,-500.0,0.0003,120]
[355580694,1741322059232,-250.0,0.000312,120]
[355580695,1741322059348,-250.0,0.000318,120]
[355580696,1741322059404,-250.0,0.000318,120]
[355580697,1741322059442,-3250.0,0.000318,120]
[355580723,1741323032518,-612.29532812,0.000192,2]
[355580724,1741323032528,-250.0,0.00019263,2]
[355580725,1741323032538,-300.0,0.00019483,2]
[355580726,1741323032548,-16644.61198055,0.00019484,2]
[355580727,1741323032627,-883.71843755,0.00019484,2]
[355580728,1741323032637,-338.7508966,0.0001955,2]
[355580730,1741323032646,-200.0,0.00019973,2]
[355580731,1741323032655,-2303.45640397,0.00019975,2]
[355580734,1741323032665,-235.547277,0.00020636,2]
[355580735,1741323032674,-165.81646604,0.00020887,2]
[355580737,1741323032683,-2826.19431063,0.00020899,2]
[355580739,1741323032693,-163.81010771,0.0002092,2]
[355580741,1741323032701,-500.0,0.00020973,2]
[355580743,1741323032711,-500.0,0.00020973,2]
[355580744,1741323032720,-501.85849124,0.00020973,2]
[355580745,1741323032729,-500.0,0.00020973,2]
[355580746,1741323032738,-160.21226566,0.00020973,2]
[355580748,1741323032747,-500.0,0.00020973,2]
[355580750,1741323032757,-500.0,0.00020973,2]
[355580752,1741323032766,-501.4176322,0.00020973,2]
[355580754,1741323032775,-267.08848597,0.00020973,2]
[355580756,1741323032784,-501.01955745,0.00020973,2]
[355580758,1741323032793,-500.0,0.00020973,2]
[355580760,1741323032802,-500.0,0.00020973,2]
[355580762,1741323032811,-506.14740147,0.00020973,2]
[355580764,1741323032820,-500.0,0.00020987,2]
[355580766,1741323032829,-540.0,0.00020987,2]
[355580768,1741323032839,-583.2,0.00020987,2]
[355580770,1741323032848,-629.856,0.00020987,2]
[355580772,1741323032857,-680.24448,0.00020987,2]
[355580774,1741323032866,-734.6640384,0.00020987,2]
[355580776,1741323032876,-793.43716147,0.00020987,2]
[355580778,1741323032885,-856.91213439,0.00020987,2]
[355580779,1741323032893,-925.46510514,0.00020987,2]
[355580781,1741323032903,-1000.0,0.00020987,2]
[355580783,1741323032912,-51724.49968542,0.00020998,2]
[355580800,1741323038426,-501.17988011,0.00020973,2]
[355580801,1741323038436,-500.0,0.00020997,2]
[355580802,1741323038445,-500.0,0.00020997,2]
[355580803,1741323038455,-211.68317083,0.00020997,2]
[355580804,1741323038464,-439.91984906,0.00020997,2]
[355580865,1741323040932,-60.08015094,0.00020997,2]
[355580867,1741323040942,-404.5207244,0.00020997,2]
[355580869,1741323040951,-500.0,0.00020997,2]
[355580870,1741323040962,-500.0,0.00020997,2]
[355580872,1741323040971,-500.0,0.00020997,2]
[355580874,1741323040981,-419.27410248,0.00020997,2]
[355580876,1741323040990,-500.0,0.00020997,2]
[355580878,1741323041000,-500.0,0.00020997,2]
[355580880,1741323041009,-465.98785691,0.00020997,2]
[355580882,1741323041020,-500.0,0.00020997,2]
[355580884,1741323041029,-117845.55289281,0.00020998,2]
[355580888,1741323041049,-3195.8584156,0.00020998,2]
[355580890,1741323041060,-2020.65807544,0.00020998,2]
[355580892,1741323041075,-3396.46875257,0.00020998,2]
[355580895,1741323041086,-4436.71785262,0.00020998,2]
[355581183,1741323043586,-61.28768046,0.00020998,2]
[355581186,1741323043598,-2320.45035696,0.00020998,2]
[355581195,1741323043674,-878.54490222,0.00020998,2]
[355581483,1741323046576,-38175.00799225,0.00020998,2]
[355581485,1741323046589,-6059.204464,0.00020998,2]
[355581487,1741323046600,-877.19,0.00020998,2]
[355581489,1741323046610,-2843.67113582,0.00020998,2]
[355582143,1741324160472,731.58593067,3.2e-05,2]
[355582144,1741324202818,1000.0,2.38e-05,2]
[355582162,1741324232756,-754.87618795,0.000189,2]
[355582164,1741324232766,-300.0,0.00019178,2]
[355582165,1741324232776,-24900.0,0.00019179,2]
[355582167,1741324232785,-173.1350364,0.00019179,2]
[355582169,1741324232794,-250.0,0.00019218,2]
[355582170,1741324232803,-1083.7265855,0.00019225,2]
[355582172,1741324232813,-165.81646604,0.00019233,2]
[355582174,1741324232822,-2374.9131936,0.00019333,2]
[355582175,1741324232832,-510.87114795,0.00019729,2]
[355582177,1741324232841,-166.0,0.00019998,2]
[355582179,1741324232850,-640.527514,0.00020004,2]
[355582180,1741324232859,-1000.0,0.0002018,2]
[355582182,1741324232868,-2432.1307773,0.00020579,2]
[355582184,1741324232878,-163.81010769,0.000208,2]
[355582185,1741324232888,-1000.0,0.000208,2]
[355582187,1741324232898,-165.81646604,0.0002089,2]
[355582189,1741324232908,-1752.82022732,0.00020898,2]
[355582191,1741324232917,-9495.31290027,0.00020899,2]
[355582247,1741324238636,-500.0,0.00020898,2]
[355582249,1741324238646,-500.0,0.00020898,2]
[355582251,1741324238656,-500.0,0.00020898,2]
[355582253,1741324238665,-500.0,0.00020898,2]
[355582255,1741324238674,-500.0,0.00020898,2]
[355582257,1741324238684,-234.77917006,0.00020898,2]
[355582259,1741324238693,-298.13656434,0.00020898,2]
[355582261,1741324238703,-500.0,0.00020898,2]
[355582263,1741324238712,-202.55346604,0.00020898,2]
[355582371,1741325280137,3519.62298655,0.00019,9]
[355582372,1741325280168,4585.4990079,0.00019,9]
[355582387,1741325305051,1294.87800555,0.00018,9]
[355582479,1741325431967,-779.49681831,0.000189,2]
[355582481,1741325431976,-168.41,0.00019169,2]
[355582483,1741325431986,-300.0,0.00019178,2]
[355582485,1741325431995,-500.0,0.00019179,2]
[355582487,1741325432004,-24232.08068583,0.00019179,2]
[355582489,1741325432016,-667.91931417,0.00019179,2]
[355582492,1741325432026,-442.038151,0.00019179,2]
[355582494,1741325432035,-181.616994,0.00019545,2]
[355582496,1741325432045,-168.41,0.0001999,2]
[355582498,1741325432054,-168.41,0.0001999,2]
[355582500,1741325432063,-168.41,0.0001999,2]
[355582501,1741325432072,-21095.51082687,0.0002,2]
[355582761,1741325437901,-7014.6945354,0.0002,2]
[355582762,1741325437912,-4262.9867579,0.0002,2]
[355582763,1741325437922,-2999.45658068,0.00020479,2]
[355582764,1741325437931,-163.81010769,0.00020479,2]
[355582765,1741325437940,-1824.098083,0.00020579,2]
[355582766,1741325437950,-163.81010769,0.000207,2]
[355582767,1741325437960,-370.09898986,0.00020799,2]
[355582768,1741325437976,-129.90101014,0.00020799,2]
[355582769,1741325437986,-370.09898986,0.00020799,2]
[355582770,1741325437998,-129.90101014,0.00020799,2]
[355582771,1741325438007,-500.0,0.00020799,2]
[355582772,1741325438017,-183.72603911,0.00020799,2]
[355582773,1741325438031,-316.27396089,0.00020799,2]
[355582774,1741325438040,-100.07734611,0.00020799,2]
[355582787,1741325440139,-233.08716097,0.00020799,2]
[355582788,1741325440148,-343.49187174,0.00020799,2]
[355582789,1741325440157,-107.9058961,0.00020799,2]
[355582857,1741325445907,-392.0941039,0.00020799,2]
[355582859,1741325445916,-500.0,0.00020799,2]
[355582861,1741325445926,-500.0,0.00020799,2]
[355582863,1741325445936,-500.0,0.00020799,2]
[355582865,1741325445945,-500.0,0.00020799,2]
[355582867,1741325445954,-500.0,0.00020799,2]
[355582869,1741325445963,-500.0,0.00020799,2]
[355582871,1741325445972,-641.17979757,0.00020799,2]
[355582873,1741325445981,-203.14280518,0.000208,2]
[355582875,1741325445990,-200.0,0.000208,3]
[355582877,1741325445999,-180.0,0.000208,3]
[355582879,1741325446008,-80871.66085967,0.000208,2]
[355582993,1741326632144,-360.408467,0.00018781,2]
[355582995,1741326632155,-519.66454554,0.000189,2]
[355582997,1741326632165,-842.094401,0.00018993,2]
[355582999,1741326632175,-200.0,0.00019179,2]
[355583002,1741326632189,-300.0,0.00019615,2]
[355583004,1741326632200,-24704.03934935,0.00019616,2]
[355583270,1741326637916,-195.96065065,0.00019616,2]
[355583271,1741326637926,-305.5673951,0.00019775,2]
[355583273,1741326637936,-2692.76628648,0.000199,2]
[355583275,1741326637946,-210.88320601,0.0002,2]
[355583277,1741326637958,-289.11679399,0.0002,2]
[355583278,1741326637967,-500.0,0.0002,2]
[355583279,1741326637976,-500.0,0.0002,2]
[355583280,1741326637986,-500.0,0.0002,2]
[355583281,1741326637995,-500.0,0.0002,2]
[355583282,1741326638004,-530.96,0.0002,2]
[355583283,1741326638014,-1500.00740977,0.0002,2]
[355583284,1741326638025,-1390.0,0.0002,2]
[355583285,1741326638034,-1457.3669313,0.00020579,2]
[355583286,1741326638044,-500.0,0.00020699,2]
[355583287,1741326638058,-605.97934464,0.00020699,2]
[355583288,1741326638067,-500.0,0.00020699,2]
[355583289,1741326638077,-188.046695,0.00020699,2]
[355583290,1741326638087,-500.0,0.00020699,2]
[355583291,1741326638096,-500.0,0.00020699,2]
[355583292,1741326638106,-500.0,0.00020699,2]
[355583293,1741326638115,-500.0,0.00020699,2]
[355583294,1741326638125,-500.0,0.00020699,2]
[355583295,1741326638134,-500.0,0.00020699,2]
[355583296,1741326638143,-500.0,0.00020699,2]
[355583297,1741326638153,-488.19061057,0.00020699,2]
[355583298,1741326638162,-500.0,0.00020699,2]
[355583299,1741326638171,-500.0,0.00020699,2]
[355583300,1741326638184,-500.0,0.00020699,2]
[355583301,1741326638193,-500.0,0.00020699,2]
[355583302,1741326638202,-500.0,0.00020699,2]
[355583303,1741326638212,-500.0,0.00020699,2]
[355583304,1741326638221,-500.0,0.00020699,2]
[355583305,1741326638230,-500.0,0.00020699,2]
[355583306,1741326638239,-500.0,0.00020699,2]
[355583307,1741326638249,-500.0,0.00020699,2]
[355583308,1741326638259,-500.0,0.00020699,2]
[355583309,1741326638268,-500.0,0.00020699,2]
[355583310,1741326638277,-500.0,0.00020699,2]
[355583311,1741326638287,-500.0,0.00020699,2]
[355583312,1741326638296,-500.0,0.00020699,2]
[355583313,1741326638305,-500.0,0.00020699,2]
[355583314,1741326638314,-500.0,0.00020699,2]
[355583315,1741326638324,-500.0,0.00020699,2]
[355583316,1741326638333,-376.94049487,0.00020699,2]
[355583317,1741326638343,-500.0,0.00020699,2]
[355583318,1741326638352,-500.0,0.00020699,2]
[355583319,1741326638362,-500.0,0.00020699,2]
[355583320,1741326638372,-500.0,0.00020699,2]
[355583321,1741326638382,-556.72211038,0.00020699,2]
[355583322,1741326638391,-449.80647938,0.000207,2]
[355583323,1741326638401,-12835.92488327,0.000207,2]
[355583372,1741326643301,-24161.55650925,0.000207,2]
[355583375,1741326643359,-18811.67656229,0.000207,2]
[355583377,1741326643371,-262.54404791,0.000207,2]
[355583968,1741327120319,6894.751,0.00016022,2]
[355583971,1741327745149,-248.72469907,0.000188,2]
[355583972,1741327745172,-51.27530093,0.000188,2]
[355584039,1741327838097,-800.88919395,0.000188,2]
[355584040,1741327838158,-103.8496124,0.000188,2]
[355584041,1741327838168,-202.72482084,0.000188,2]
[355584042,1741327838178,-289.62393234,0.000188,2]